Cogmind - Beta 17 @@@ ROGUE MODE // 2026.07.13 @ 14:32:14 Player: IsAway Result: Destroyed by as-06786 with Assembled F-torch Performance ------------- Evolutions (0) 0 Regions Visited (2) 400 Robots Destroyed (24) 120 Value Destroyed (514) 514 Prototype IDs (2) 40 Alien Tech Used (0) 0 Bonus (0) 0 TOTAL SCORE: 1074 Bonus ------- None Cogmind --------- Core Integrity 0/250 Matter 292/300 Energy 100/100 System Corruption 0% Temperature Cool (50) Movement Core (200) Ox3 Location -10/Mines Parts ------- > --- POWER (1) -------- (None) > --- PROPULSION (2) --- (None) > --- UTILITY (2) ------ Medium Storage Unit > --- WEAPON (2) ------- Light Assault Rifle Light Assault Rifle > --- INVENTORY (10) --- Light Ion Engine Light Ion Engine Hover Unit Large Storage Unit High-capacity Storage Unit Medium Matter Pod (99) Sensor Array Recalibrator Datajack Mining Laser Peak State ------------ > --- POWER ------------ Ion Engine > --- PROPULSION ------- Aluminum Leg Aluminum Leg > --- UTILITY ---------- Small Storage Unit Seismic Detector > --- WEAPON ----------- Particle Gun Assault Rifle > --- INVENTORY -------- Ion Engine Hover Unit Small Storage Unit Huge Storage Unit Medium Matter Pod Sensor Array Datajack Mining Laser [Rating: 8] Favorites ----------- Power Ion Engine Engine Ion Engine Propulsion Aluminum Leg Leg Aluminum Leg Hover Unit Hover Unit Utility Small Storage Unit Device Seismic Detector Storage Small Storage Unit Weapon Light Assault Rifle Energy Gun EM Pulse Gun Ballistic Gun Light Assault Rifle Special Weapon Mining Laser Build | -11 -10 -10 ------- Run | Yrd Mat Min Slots Evolved . | . . . Power . | . . . Propulsion . | . . . Utility . | . . . Weapon . | . . . Parts Attached 22 | 8 14 . Power 2 | 1 1 . Engine 2 | 1 1 . Core . | . . . Reactor . | . . . Propulsion 7 | 2 5 . Treads . | . . . Leg 5 | 2 3 . Wheel . | . . . Hover 2 | . 2 . Flight . | . . . Utility 5 | 3 2 . Device 1 | 1 . . Storage 4 | 2 2 . Processor . | . . . Hackware . | . . . Protection . | . . . Artifact . | . . . Weapon 8 | 2 6 . Energy Gun 4 | 2 2 . Energy Cannon . | . . . Ballistic Gun 3 | . 3 . Ballistic Cannon . | . . . Launcher . | . . . Special Weapon 1 | . 1 . Impact Weapon . | . . . Slashing Weapon . | . . . Piercing Weapon . | . . . Special Melee Weapon . | . . . Unidentified Prototypes . | . . . Parts Lost 6 | . 4 2 Power . | . . . Propulsion 3 | . 1 2 Utility 1 | . 1 . Weapon 2 | . 2 . Highest Loss Streak 3 | . 3 2 To Critical Strikes . | . . . Average Backups 7 | 4 7 10 Power 1 | . 1 2 Propulsion 1 | 2 1 1 Utility 3 | . 2 5 Weapon 1 | 1 1 1 Tool/Special . | . . . Unused Backups 14 | . 6 8 Power 2 | . . 2 Propulsion 5 | . 4 1 Utility 5 | . 1 4 Weapon 1 | . 1 . Tool/Special 1 | . . 1 Average Slot Usage (%) 89 | . 97 69 Engine 10 | . 14 . Leg 12 | . 17 . Hover 14 | . 10 26 Device 5 | . 7 . Storage 19 | . 20 14 Energy Gun 8 | . 12 . Ballistic Gun 14 | . 11 23 Special Weapon 2 | . 1 4 Peak Build Rating 8 | 7 8 6 Average Rating 6 | 5 7 5 On Entrance 4 | . 7 6 Avg Prop Armor Cover (%) . | . . . Naked Turns . | . . . Heaviest Build 18 | 18 16 12 Greatest Support 20 | 20 20 12 Greatest Overweight (x) 4 | 4 2 . Average Overweight (x) . | . . . Largest Inventory Capacity 10 | 8 10 10 Average Capacity 8 | 7 8 10 Most Carried 10 | 8 10 10 Average Carried 7 | 4 7 9 Final Capacity 10 | 8 10 10 Final Carried 10 | 8 10 10 Class Distribution -------------------- 56% | Scavenger-Mutant 43% | Mutant Dominant Class ---------------- Scavenger-Mutant | -10/Materials Scavenger-Mutant | -10/Mines Resources | -11 -10 -10 ----------- Run | Yrd Mat Min Matter Collected 653 | 280 323 50 Remotely . | . . . Salvage Created 806 | 117 593 96 Parts 55 | 15 33 7 Haulers Intercepted . | . . . Recyclers Shooed . | . . . Parts Field Recycled . | . . . Retrieved Matter . | . . . Parts Self-Destructed . | . . . Prevented . | . . . Parts Restored . | . . . Kills | -11 -10 -10 ------- Run | Yrd Mat Min Combat Hostiles Destroyed 19 | . 13 6 Guns 18 | . 12 6 AOE 1 | . 1 . Classes Destroyed 7 | 2 4 1 Tunneler 3 | 3 . . Recycler 1 | 1 . . Mechanic 1 | . 1 . Watcher 3 | . 3 . Swarmer 6 | . 3 3 Grunt 10 | . 10 . Assembled 3 | . . 3 Best Kill Streak 5 | 4 5 3 Combat Bots Only 5 | . 5 3 Max Kills in Single Turn 1 | 1 1 1 Gunslinging . | . . . Exploded 1 | . 1 . Melee . | . . . Uniques/NPCs Destroyed . | . . . Combat | -11 -10 -10 -------- Run | Yrd Mat Min Hostile Shots Fired 122 | . 104 18 Missed 35 | . 26 9 Hits 87 | . 78 9 Melee 6 | . . 6 Projectile 81 | . 78 3 Critical Strikes 1 | . . 1 Damage Taken 1031 | . 817 214 Core 259 | . 182 77 Absorbed by Shields . | . . . Core Remaining (%) 100 | 100 . . Volleys Fired 88 | 10 59 19 Largest 2 | 2 2 2 Hottest 120 | 80 120 40 Shots Fired 162 | 20 104 38 Gun 155 | 20 97 38 Cannon . | . . . Launcher . | . . . Special 7 | . 7 . Kinetic 86 | . 48 38 Thermal 43 | 10 33 . Explosive . | . . . Electromagnetic 33 | 10 23 . Robot Hit Streak 13 | 5 13 4 Robot Miss Streak 7 | 4 7 2 Penetration Max . | . . . Secondary Targets 3 | . 1 2 Max Gunslinging Chain 1 | . 1 1 Shots Hit Robots 96 | 9 64 23 Core Hits 48 | 5 27 16 Critical Kills 1 | . . 1 Critical Parts Destroyed . | . . . Critical Strikes 2 | . 1 1 Destroy 1 | . . 1 Corrupt 1 | . 1 . Melee Attacks . | . . . Impact . | . . . Slashing . | . . . Piercing . | . . . Sneak Attacks . | . . . Combat Hostiles . | . . . Follow-up Attacks . | . . . Damage Inflicted 1254 | 110 963 181 Guns 1168 | 110 877 181 Cannons . | . . . Explosions 86 | . 86 . Melee . | . . . Ramming . | . . . Kinetic 584 | . 403 181 Thermal 349 | 43 306 . Explosive . | . . . Electromagnetic 321 | 67 254 . Impact . | . . . Slashing . | . . . Piercing . | . . . Highest Corruption . | . . . Average Corruption . | . . . Corruption Purged . | . . . Corruption Blocked . | . . . Overload Shots . | . . . Overflow Damage . | . . . Projectiles . | . . . Explosions . | . . . Melee . | . . . Knockbacks . | . . . Impact . | . . . Kinetic . | . . . Secondary . | . . . Self-Inflicted Damage . | . . . Shots . | . . . Rammed . | . . . Targets Rammed . | . . . Kicked . | . . . Crushed . | . . . Highest Temperature 348 | 108 348 55 Average Temperature 81 | 46 89 42 Received Heat Transfer 430 | . 330 100 Effects 1 | . 1 . Energy Bleed 1 | . 1 . Siege Activations . | . . . Martial Activations . | . . . Shielding Activations . | . . . Robots Disrupted . | . . . Combat Hostiles . | . . . Robots Corrupted . | . . . Combat Hostiles . | . . . Parts Fried . | . . . Impact Corruptions . | . . . Robots Melted . | . . . Combat Hostiles . | . . . Parts Melted 1 | . 1 . Heat Transferred 720 | 100 620 . Parts Sabotaged . | . . . Parts Stolen . | . . . Parts Stripped . | . . . Power Chain Reactions 1 | . 1 . Alert | -11 -10 -10 ------- Run | Yrd Mat Min Maximum Alert Level . | . . . Low Security (%) 100 | 100 100 100 Level 1 . | . . . Level 2 . | . . . Level 3 . | . . . Level 4 . | . . . Level 5 . | . . . High Security . | . . . Max Security . | . . . Peak Influence 164 | 10 164 70 Initial 8 | . . 8 Average 59 | 1 80 35 Influence Increases 540 | 20 420 100 Destroy 0b10 Robot/C 320 | . 260 60 Destroy 0b10 Robot/NC 40 | 20 20 . Destroy Leader 56 | . 46 10 Successful Hack 23 | . 23 . Select Force Hacks 30 | . 30 . Destroy Structure 11 | . 11 . Lose Combat Pursuer 60 | . 30 30 Influence Decreases 540 | 20 397 123 Entered New Map 15 | . . 15 Time Decay 359 | 20 251 88 Lost Part 60 | . 40 20 Purge Threat 106 | . 106 . Squads Dispatched 2 | . 2 . Investigation 2 | . 2 . Extermination . | . . . Reinforcement . | . . . Assault . | . . . Garrison . | . . . Intercept . | . . . Searches Triggered . | . . . Construction Impeded . | . . . Haulers Reinforced . | . . . Active Scanning Responses . | . . . Cargo Convoy Interrupts . | . . . Stealth | -11 -10 -10 --------- Run | Yrd Mat Min Distress Signals 1 | . 1 . Communications Jammed . | . . . Distress Signals . | . . . Times Spotted 41 | . 22 19 Peak Tracking Total 12 | . 6 12 Tactical Retreats 4 | . 2 2 Traps | -11 -10 -10 ------- Run | Yrd Mat Min Traps Triggered 1 | . 1 . Indirectly . | . . . Trap Hack Attempts . | . . . Triggered . | . . . Disarmed . | . . . Reprogrammed . | . . . Reused . | . . . Traps Extracted . | . . . Installed . | . . . Triggered . | . . . Machines | -11 -10 -10 ---------- Run | Yrd Mat Min Machines Disabled . | . . . Max in Single Turn . | . . . Machines Repaired . | . . . Machines Dismantled . | . . . Machines Sabotaged . | . . . Overloaded Fab Kills . | . . . Hacking | -11 -10 -10 --------- Run | Yrd Mat Min Machines Accessed 7 | . 7 . Terminals 5 | . 5 . Fabricators . | . . . Repair Stations . | . . . Recycling Units 2 | . 2 . Scanalyzers . | . . . Garrison Access . | . . . Total Hacks 16 | . 16 . Successful 8 | . 8 . Failed 8 | . 8 . Catastrophic 2 | . 2 . Database Lockouts . | . . . Manual 9 | . 9 . Terminals 12 | . 12 . Fabricators . | . . . Repair Stations . | . . . Recycling Units 4 | . 4 . Scanalyzers . | . . . Garrison Access . | . . . Terminal Hacks 6 | . 6 . Prototype ID Bank 1 | . 1 . Branch Access Points 1 | . 1 . Recycling Unit Index 1 | . 1 . Scanalyzer Index 1 | . 1 . Unreport Threat 1 | . 1 . Zone Layout 1 | . 1 . Fabricator Hacks . | . . . Repair Station Hacks . | . . . Recycling Unit Hacks 1 | . 1 . Retrieve Components 1 | . 1 . Scanalyzer . | . . . Garrison Access Hacks . | . . . Unauthorized Hacks 1 | . 1 . Terminals . | . . . Fabricators . | . . . Repair Stations . | . . . Recycling Units 1 | . 1 . Tunnel 1 | . 1 . Scanalyzers . | . . . Garrison Access . | . . . Data Cores Recovered . | . . . Used . | . . . Hacking Detections 5 | . 5 . Full Trace Events . | . . . Feedback Events . | . . . Feedback Blocked . | . . . Robot Schematics Acquired . | . . . Robots Built . | . . . Authchips . | . . . Time . | . . . Total Robot Build Rating . | . . . Part Schematics Acquired . | . . . Parts Built . | . . . Authchips . | . . . Time . | . . . Total Part Build Rating . | . . . Part Studies Acquired . | . . . Parts Repaired . | . . . Time . | . . . Parts Recycled . | . . . Recycled Matter . | . . . Retrieved Matter . | . . . Retrieved Components 9 | . 9 . Parts Scanalyzed . | . . . Part Schematics Acquired . | . . . Parts Damaged . | . . . Bothacking | -11 -10 -10 ------------ Run | Yrd Mat Min Used RIF Installer . | . . . Robots Hacked . | . . . Non-combat . | . . . Combat . | . . . Robot Hacks Applied . | . . . Relay Couplers Released . | . . . Fabnet Peak Effective % . | . . . Robots Rewired . | . . . Allies Hacked . | . . . Hacks Repelled . | . . . Allies | -11 -10 -10 -------- Run | Yrd Mat Min Total Allies . | . . . Largest Group . | . . . Highest-Rated Group . | . . . Highest-Rated Ally . | . . . Total Orders . | . . . Ally Attacks . | . . . Total Damage . | . . . Kills . | . . . Allies Corrupted . | . . . Allies Melted 1 | . . 1 Intel | -11 -10 -10 ------- Run | Yrd Mat Min Active Infowar (turns) 331 | 25 306 . Seismic 331 | 25 306 . Robot Analysis Total . | . . . Derelict Logs Recovered . | . . . Drone Launches . | . . . Drone Recoveries . | . . . Exploration | -11 -10 -10 ------------- Run | Yrd Mat Min Turns Passed 967 | 125 621 221 Spaces Moved 798 | 56 487 255 Core 17 | 17 . . Treads . | . . . Legs 215 | 39 176 . Wheels . | . . . Hover 566 | . 311 255 Flight . | . . . Fastest Speed 50 | 50 56 56 Average Speed 76 | 136 79 56 Slowest Speed 250 | 250 190 56 Overloaded Moves . | . . . Propulsion Burnouts . | . . . Robots Hopped . | . . . Potential Cave-ins . | . . . Cave-ins Triggered . | . . . Exploration Rate (%) 44 | 5 70 59 Regions Visited 2 Branch Regions 1 Pre-discovered Areas 1 | . 1 . Known Exits Taken 1 | . 1 . Unknown Exits Taken 1 | 1 . . Scrap Searched 1 | . . 1 Spaces Dug 6 | . 6 . Terrain Destroyed 12 | . 12 . Melee . | . . . Projectile 6 | . 6 . AOE 6 | . 6 . Terrain Rammed . | . . . Walls Destroyed . | . . . Machines Disabled . | . . . Actions | -11 -10 -10 --------- Run | Yrd Mat Min Total 992 | 81 608 303 Wait 44 | . 18 26 Move 796 | 55 486 255 Hop . | . . . Pick Up 19 | 7 11 1 Fast Attach 15 | 8 7 . Attach 2 | . 2 . Detach 3 | 1 2 . Swap 7 | . 6 1 Drop 18 | . 17 1 Fire 88 | 10 59 19 Melee . | . . . Ram . | . . . Kick . | . . . Crush . | . . . Escape Stasis . | . . . Rewire . | . . . Trap . | . . . Miscellaneous . | . . . Route ------- -11/Scrapyard -10/Materials (discovered 5 exits: [*Mat x3] / *Min / [*Sub]) -10/Mines (discovered 1 exit: [*Mat]) History --------- Turn | Location | Event 36 | -11/Scrapyard | Discovered new exit (range 15) 126 | -11/Scrapyard | Entered Materials 148 | -10/Materials | Identified exit to Mines 302 | -10/Materials | Build established: Mutant 332 | -10/Materials | Discovered new exit (range 11) 398 | -10/Materials | Core integrity fell below 50% 464 | -10/Materials | Lost 3 parts (1n1u1w) 593 | -10/Materials | Discovered new exit (range 15) 595 | -10/Materials | Discovered new exit (range 7) 702 | -10/Materials | Discovered new exit (range 16) 709 | -10/Materials | Build established: Scavenger-Mutant 747 | -10/Materials | Entered Mines 766 | -10/Mines | Met a Derelict bent on vengeance 867 | -10/Mines | Discovered new exit (range 10) 895 | -10/Mines | Assembled infested the area 900 | -10/Mines | Assisted by a Guerilla fighting off Assembled 941 | -10/Mines | Core integrity fell below 20% 968 | -10/Mines | Destroyed by as-06786 with Assembled F-torch Last Messages --------------- K-01 Serf cleans the Plasma Injector. K-01 Serf collects debris. ALERT: Infestation in the mines, dispatching Demolisher response squad. A derelict emerges from the shadows: "You need to get out of here! I've been tracking a group of Assembled to figure out where they're coming from, and they're closing on this area, come on!" K-01 Serf collects debris. UB-WAG(h): "I'll hold them off! Go on ahead or try to find another way!" as-99687 destroyed. Hover Unit destroyed. as-75467 destroyed. Switching to secondary target: as-74239. Acquired 13 matter. as-74239 destroyed. Switching to secondary target: as-06786. Critical hit (Burn: +80). Map ----- +----------------------------------------------------+ | | | | | | | | | | | | | | | | | | | | | | | | | | | | | | | | | ??????????????????????????????????????????????? | | ??????????????????????????????????????????????? | | ??????????????????????????????????????????????? | | ??????????????????????????????????????????????? | | ??????????????????????????????????????????????? | | ?????????????????????###??????????????????????? | | ????????????????????? a ??????????????????????? | | ?????????????????????#a#??????????????????????? | | ?????????????????????#%#??????????????????????? | | ?????????????????????#@#??????????????????????? | | ?????????????????????# ###??????????????????### | | ?????????????????????# #??????????????????# | | ?????????????????????### #??????????????????# # | | ???????????????????????# #???????????????#### # | | ???????????????????????# ###############?# # | | ???????????????????????# #?# #### | | ???????????????????????############### #?# #??? | | ?????????????????????????????????????# #?# #??? | | ?????????????????????????????????????# ### #??? | | ?????????????????????????????????????# #??# | | ?????????????????????????????????????# ####### | | ?????????????????????????????????????# ###### | | ?????????????????????????????????????# | | ?????????????????????????????????????# #### | | ????????????????????????????????? ## #??# | | ??????????????????????????????? #### # | | ??????????????????????????????? | | ??????????????????????????????????# | | ????????????????????? ????????????## ##### | | ????????????????????? ???????????#### ?????? | | ????????????????????? ?????????????##??????? | | ???????????????????? ????????????????????? | | ???????????????????? ????????????????????? | | ???????????????????? ?????????????????????? | +----------------------------------------------------+ Best States ------------- Heat Dissipation 25 Energy Generation 10 Energy Capacity 250 Matter Stores 400 Matter Capacity 400 Sight Range 16 Terrain Scan Density 10 Evasion (%) 55 Item Schematics ----------------- None Robot Schematics ------------------ None Fabricated ------------ Nothing Repaired ---------- Nothing Studied --------- None Alien Tech Used ----------------- None Achievements -------------- None Challenges ------------ None Game ------ Seed SurgePartitionShielding Manual? 0 Play Time 00:23:21 Cumulative 32.5 hours Start 2026.07.13 @ 13:17:19 End 2026.07.13 @ 14:32:14 Sessions 1 Manual Loads 0 Difficulty Rogue Special Mode None Game No. 45 Rogue 45 Adventurer 0 Explorer 0 Win Type - Total 0 Types 0/0/0/0/0/0/0/0/0/0 Lore% 34 Gallery% 24 Achievement% 23 Wizard Run 0 Options --------- Layout 1 ASCII 0 Keyboard 0 Movement Mouse Keybinds 0 Fullscreen 2 Font 18/SmallcapsGlow Map View 51x41 Zoom Use 0% Tactical HUD 0 Map Filters NONE Filters NONE Steam 1 RUN: 4f5bccb7-e14c-453a-bc4f-3b223775aca3